[Event "Titled Tuesday Blitz February 28 Early 2023"]
[White "Alahakoon, Isuru"]
[Black "Cappai, Davide"]
[WhiteFideId "9900993"]
[BlackFideId "813338"]
[WhiteElo "1995"]
[BlackElo "2269"]
[Result "1-0"]
[Round "02"]
[TimeControl "180+2"]
[Date "2023.02.28"]
[WhiteClock "0:00:12"]
[BlackClock "0:01:09"]

1. Nf3 {[%clk 0:03:00]}  g6 {[%clk 0:02:59]} 2. d4 {[%clk 0:03:00]}  Bg7 {[%clk 0:03:00]} 3. e4 {[%clk 0:03:00]}  c5 {[%clk 0:03:00]} 4. dxc5 {[%clk 0:02:59]}  Qa5+ {[%clk 0:03:00]} 5. Bd2 {[%clk 0:02:59]}  Qxc5 {[%clk 0:03:00]} 6. Nc3 {[%clk 0:02:59]}  Nc6 {[%clk 0:03:00]} 7. Nd5 {[%clk 0:02:59]}  Ne5 {[%clk 0:02:43]} 8. Bb4 {[%clk 0:02:45]}  Nxf3+ {[%clk 0:02:38]} 9. gxf3 {[%clk 0:02:42]}  Qd4 {[%clk 0:02:10]} 10. Qxd4 {[%clk 0:02:22]}  Bxd4 {[%clk 0:02:11]} 11. Nc7+ {[%clk 0:02:22]}  Kd8 {[%clk 0:02:12]} 12. Nxa8 {[%clk 0:02:22]}  b6 {[%clk 0:02:12]} 13. O-O-O {[%clk 0:02:06]}  Be5 {[%clk 0:02:12]} 14. Bh3 {[%clk 0:01:27]}  Nf6 {[%clk 0:02:11]} 15. Bc3 {[%clk 0:01:19]}  Bxc3 {[%clk 0:01:51]} 16. bxc3 {[%clk 0:01:20]}  Nh5 {[%clk 0:01:49]} 17. Rd2 {[%clk 0:00:52]}  Nf4 {[%clk 0:01:46]} 18. Bxd7 {[%clk 0:00:48]}  Bxd7 {[%clk 0:01:29]} 19. Rhd1 {[%clk 0:00:48]}  Ne2+ {[%clk 0:01:30]} 20. Rxe2 {[%clk 0:00:48]}  Kc8 {[%clk 0:01:31]} 21. Red2 {[%clk 0:00:47]}  Bc6 {[%clk 0:01:31]} 22. Nxb6+ {[%clk 0:00:39]}  axb6 {[%clk 0:01:32]} 23. Kb2 {[%clk 0:00:38]}  Kc7 {[%clk 0:01:32]} 24. Rd4 {[%clk 0:00:37]}  Rf8 {[%clk 0:01:31]} 25. f4 {[%clk 0:00:35]}  Ra8 {[%clk 0:01:31]} 26. f3 {[%clk 0:00:33]}  Ra5 {[%clk 0:01:30]} 27. Rc4 {[%clk 0:00:27]}  Rb5+ {[%clk 0:01:29]} 28. Rb4 {[%clk 0:00:27]}  Rh5 {[%clk 0:01:29]} 29. Rd2 {[%clk 0:00:26]}  Rh3 {[%clk 0:01:29]} 30. Rf2 {[%clk 0:00:26]}  Rh4 {[%clk 0:01:30]} 31. e5 {[%clk 0:00:23]}  Rh3 {[%clk 0:01:27]} 32. a4 {[%clk 0:00:22]}  e6 {[%clk 0:01:18]} 33. Rd4 {[%clk 0:00:21]}  Bxf3 {[%clk 0:01:17]} 34. Rd3 {[%clk 0:00:21]}  Bg4 {[%clk 0:01:18]} 35. Rxh3 {[%clk 0:00:19]}  Bxh3 {[%clk 0:01:19]} 36. Kb3 {[%clk 0:00:19]}  Bf5 {[%clk 0:01:18]} 37. Kb4 {[%clk 0:00:19]}  Be4 {[%clk 0:01:19]} 38. c4 {[%clk 0:00:18]}  Kc6 {[%clk 0:01:17]} 39. Rd2 {[%clk 0:00:18]}  h5 {[%clk 0:01:15]} 40. h4 {[%clk 0:00:17]}  Kc7 {[%clk 0:01:15]} 41. c3 {[%clk 0:00:15]}  Bc6 {[%clk 0:01:14]} 42. Rd6 {[%clk 0:00:14]}  Be4 {[%clk 0:01:14]} 43. c5 {[%clk 0:00:14]}  bxc5+ {[%clk 0:01:13]} 44. Kxc5 {[%clk 0:00:15]}  Bc2 {[%clk 0:01:13]} 45. a5 {[%clk 0:00:15]}  Be4 {[%clk 0:01:14]} 46. c4 {[%clk 0:00:15]}  Bg2 {[%clk 0:01:14]} 47. Kb5 {[%clk 0:00:14]}  Bf1 {[%clk 0:01:14]} 48. Ra6 {[%clk 0:00:14]}  Kb7 {[%clk 0:01:12]} 49. Rd6 {[%clk 0:00:14]}  Kc7 {[%clk 0:01:11]} 50. a6 {[%clk 0:00:14]}  Bg2 {[%clk 0:01:12]} 51. a7 {[%clk 0:00:14]}  Kb7 {[%clk 0:01:11]} 52. Rd7+ {[%clk 0:00:13]}  Ka8 {[%clk 0:01:12]} 53. Rxf7 {[%clk 0:00:13]}  Be4 {[%clk 0:01:12]} 54. c5 {[%clk 0:00:13]}  g5 {[%clk 0:01:12]} 55. hxg5 {[%clk 0:00:12]}  h4 {[%clk 0:01:12]} 56. g6 {[%clk 0:00:12]}  Bxg6 {[%clk 0:01:12]} 57. Rg7 {[%clk 0:00:12]}  Be4 {[%clk 0:01:12]} 58. Kb6 {[%clk 0:00:12]}  Bb7 {[%clk 0:01:09]} 59. Rg8+ {[%clk 0:00:12]}  Bc8 {[%clk 0:01:09]} 60. Rxc8# {[%clk 0:00:12]} 1-0


[Site "https://www.chess.com"]

[Event "Titled Tuesday Blitz February 28 Early 2023"]
[White "Derjabin, Ilja"]
[Black "Ipek, Egehan"]
[WhiteFideId "14104768"]
[BlackFideId "44523793"]
[WhiteElo "2309"]
[BlackElo "1948"]
[Result "1-0"]
[Round "02"]
[TimeControl "180+2"]
[Date "2023.02.28"]
[WhiteClock "0:00:04"]
[BlackClock "0:00:02"]

1. d4 {[%clk 0:02:56]}  Nf6 {[%clk 0:02:59]} 2. c4 {[%clk 0:02:56]}  e6 {[%clk 0:02:59]} 3. Nc3 {[%clk 0:02:56]}  Bb4 {[%clk 0:03:00]} 4. a3 {[%clk 0:02:56]}  Bxc3+ {[%clk 0:02:59]} 5. bxc3 {[%clk 0:02:57]}  O-O {[%clk 0:03:00]} 6. f3 {[%clk 0:02:57]}  c5 {[%clk 0:02:53]} 7. e3 {[%clk 0:02:57]}  b6 {[%clk 0:02:52]} 8. Bd3 {[%clk 0:02:57]}  Nc6 {[%clk 0:02:52]} 9. Ne2 {[%clk 0:02:57]}  Ba6 {[%clk 0:02:53]} 10. O-O {[%clk 0:02:58]}  Na5 {[%clk 0:02:53]} 11. e4 {[%clk 0:02:57]}  Bxc4 {[%clk 0:02:47]} 12. Bxc4 {[%clk 0:02:56]}  Nxc4 {[%clk 0:02:48]} 13. Bg5 {[%clk 0:02:56]}  d5 {[%clk 0:02:29]} 14. e5 {[%clk 0:02:46]}  h6 {[%clk 0:02:25]} 15. Bh4 {[%clk 0:02:46]}  g5 {[%clk 0:02:25]} 16. Bf2 {[%clk 0:02:46]}  Nd7 {[%clk 0:02:20]} 17. f4 {[%clk 0:02:39]}  f6 {[%clk 0:02:16]} 18. fxg5 {[%clk 0:02:23]}  hxg5 {[%clk 0:01:57]} 19. exf6 {[%clk 0:02:22]}  Nxf6 {[%clk 0:01:56]} 20. Ng3 {[%clk 0:02:17]}  Qe7 {[%clk 0:01:45]} 21. Qd3 {[%clk 0:02:12]}  Qh7 {[%clk 0:01:25]} 22. Qe2 {[%clk 0:02:03]}  Rae8 {[%clk 0:01:24]} 23. dxc5 {[%clk 0:02:02]}  Nd7 {[%clk 0:01:03]} 24. cxb6 {[%clk 0:01:56]}  axb6 {[%clk 0:01:04]} 25. a4 {[%clk 0:01:44]}  Nde5 {[%clk 0:01:03]} 26. h3 {[%clk 0:01:43]}  Nd3 {[%clk 0:01:03]} 27. Be3 {[%clk 0:01:29]}  Qg6 {[%clk 0:00:54]} 28. Rad1 {[%clk 0:00:57]}  Nf4 {[%clk 0:00:36]} 29. Qe1 {[%clk 0:00:53]}  e5 {[%clk 0:00:28]} 30. a5 {[%clk 0:00:51]}  bxa5 {[%clk 0:00:26]} 31. Bc5 {[%clk 0:00:47]}  Rf7 {[%clk 0:00:19]} 32. Ne2 {[%clk 0:00:48]}  Nd3 {[%clk 0:00:18]} 33. Rxd3 {[%clk 0:00:40]}  Qxd3 {[%clk 0:00:19]} 34. Rxf7 {[%clk 0:00:40]}  Kxf7 {[%clk 0:00:20]} 35. Qf2+ {[%clk 0:00:33]}  Kg7 {[%clk 0:00:19]} 36. Ng3 {[%clk 0:00:33]}  Qb1+ {[%clk 0:00:15]} 37. Kh2 {[%clk 0:00:33]}  Qg6 {[%clk 0:00:13]} 38. Nf5+ {[%clk 0:00:31]}  Kh7 {[%clk 0:00:14]} 39. g4 {[%clk 0:00:28]}  e4 {[%clk 0:00:13]} 40. Qd4 {[%clk 0:00:27]}  Ne5 {[%clk 0:00:11]} 41. Qxd5 {[%clk 0:00:25]}  Nf3+ {[%clk 0:00:12]} 42. Kg3 {[%clk 0:00:25]}  Rb8 {[%clk 0:00:02]} 43. Qd7+ {[%clk 0:00:23]}  Kh8 {[%clk 0:00:03]} 44. Qc7 {[%clk 0:00:06]}  Re8 {[%clk 0:00:02]} 45. Bd6 {[%clk 0:00:03]}  Kg8 {[%clk 0:00:02]} 46. Qc6 {[%clk 0:00:02]}  Qf7 {[%clk 0:00:02]} 47. Nh6+ {[%clk 0:00:02]}  Kg7 {[%clk 0:00:03]} 48. Nxf7 {[%clk 0:00:03]}  Kxf7 {[%clk 0:00:04]} 49. Qd7+ {[%clk 0:00:02]}  Kg6 {[%clk 0:00:02]} 50. Qf5+ {[%clk 0:00:03]}  Kg7 {[%clk 0:00:02]} 51. Bc5 {[%clk 0:00:03]}  Nd2 {[%clk 0:00:01]} 52. Be3 {[%clk 0:00:03]}  Nc4 {[%clk 0:00:01]} 53. Bd4+ {[%clk 0:00:03]}  Kg8 {[%clk 0:00:01]} 54. Qg6+ {[%clk 0:00:04]}  Kf8 {[%clk 0:00:02]} 55. Qg7# {[%clk 0:00:04]} 1-0


[Site "https://www.chess.com"]

[Event "Titled Tuesday Blitz February 28 Early 2023"]
[White "Filgueira, Hernan"]
[Black "Kornyukov, Alexey"]
[WhiteFideId "101770"]
[BlackFideId "4150457"]
[WhiteElo "2363"]
[BlackElo "2352"]
[Result "1-0"]
[Round "02"]
[TimeControl "180+2"]
[Date "2023.02.28"]
[WhiteClock "0:01:02"]
[BlackClock "0:00:57"]

1. c4 {[%clk 0:02:59]}  e5 {[%clk 0:02:59]} 2. Nc3 {[%clk 0:02:59]}  Nc6 {[%clk 0:02:58]} 3. Nf3 {[%clk 0:02:58]}  Nf6 {[%clk 0:02:57]} 4. a3 {[%clk 0:02:57]}  Bc5 {[%clk 0:02:56]} 5. d3 {[%clk 0:02:52]}  O-O {[%clk 0:02:56]} 6. e3 {[%clk 0:02:49]}  d5 {[%clk 0:02:53]} 7. cxd5 {[%clk 0:02:48]}  Nxd5 {[%clk 0:02:51]} 8. Nxd5 {[%clk 0:02:47]}  Qxd5 {[%clk 0:02:49]} 9. b4 {[%clk 0:02:48]}  Bb6 {[%clk 0:02:41]} 10. Bb2 {[%clk 0:02:33]}  Bg4 {[%clk 0:02:33]} 11. Be2 {[%clk 0:02:32]}  Rad8 {[%clk 0:02:28]} 12. Qc2 {[%clk 0:02:28]}  Kh8 {[%clk 0:02:20]} 13. h3 {[%clk 0:02:11]}  Be6 {[%clk 0:02:06]} 14. Bc3 {[%clk 0:01:58]}  f5 {[%clk 0:02:03]} 15. Qb2 {[%clk 0:01:56]}  Rd7 {[%clk 0:01:37]} 16. O-O {[%clk 0:01:48]}  e4 {[%clk 0:01:35]} 17. dxe4 {[%clk 0:01:34]}  fxe4 {[%clk 0:01:33]} 18. Rad1 {[%clk 0:01:33]}  exf3 {[%clk 0:01:09]} 19. Rxd5 {[%clk 0:01:31]}  fxe2 {[%clk 0:01:07]} 20. Rxd7 {[%clk 0:01:01]}  exf1=Q+ {[%clk 0:01:00]} 21. Kxf1 {[%clk 0:01:01]}  Bxd7 {[%clk 0:00:58]} 22. Bxg7+ {[%clk 0:01:01]}  Kg8 {[%clk 0:00:58]} 23. Bxf8 {[%clk 0:01:01]}  Kxf8 {[%clk 0:00:58]} 24. Qh8+ {[%clk 0:01:02]}  Kf7 {[%clk 0:00:57]} 25. Qxh7+ {[%clk 0:01:02]} 1-0


[Site "https://www.chess.com"]

[Event "Titled Tuesday Blitz February 28 Early 2023"]
[White "Piriflillo"]
[Black "Nguyen Hong Nhung"]
[BlackFideId "12412201"]
[WhiteElo "2324"]
[BlackElo "1904"]
[Result "1-0"]
[Round "02"]
[TimeControl "180+2"]
[Date "2023.02.28"]
[WhiteClock "0:00:31"]
[BlackClock "0:00:04"]

1. d4 {[%clk 0:03:00]}  f5 {[%clk 0:02:59]} 2. Bg5 {[%clk 0:02:58]}  g6 {[%clk 0:02:58]} 3. e3 {[%clk 0:02:56]}  Bg7 {[%clk 0:02:58]} 4. c4 {[%clk 0:02:54]}  Nf6 {[%clk 0:02:57]} 5. Nc3 {[%clk 0:02:54]}  d6 {[%clk 0:02:57]} 6. Bd3 {[%clk 0:02:50]}  O-O {[%clk 0:02:55]} 7. Nf3 {[%clk 0:02:42]}  Qe8 {[%clk 0:02:53]} 8. O-O {[%clk 0:02:37]}  e5 {[%clk 0:02:52]} 9. dxe5 {[%clk 0:02:36]}  dxe5 {[%clk 0:02:53]} 10. e4 {[%clk 0:02:29]}  c6 {[%clk 0:02:30]} 11. Re1 {[%clk 0:01:58]}  f4 {[%clk 0:02:27]} 12. Bxf6 {[%clk 0:01:58]}  Bxf6 {[%clk 0:02:21]} 13. c5 {[%clk 0:01:57]}  Be6 {[%clk 0:02:18]} 14. Bf1 {[%clk 0:01:49]}  Nd7 {[%clk 0:02:13]} 15. b4 {[%clk 0:01:41]}  g5 {[%clk 0:02:01]} 16. Nd2 {[%clk 0:01:41]}  b6 {[%clk 0:01:48]} 17. cxb6 {[%clk 0:01:27]}  axb6 {[%clk 0:01:49]} 18. b5 {[%clk 0:01:23]}  Nc5 {[%clk 0:01:10]} 19. Nc4 {[%clk 0:00:57]}  Rd8 {[%clk 0:00:56]} 20. Qc2 {[%clk 0:00:57]}  cxb5 {[%clk 0:00:22]} 21. Nxb6 {[%clk 0:00:54]}  Qc6 {[%clk 0:00:22]} 22. Ncd5 {[%clk 0:00:49]}  Bxd5 {[%clk 0:00:18]} 23. Nxd5 {[%clk 0:00:50]}  Rd6 {[%clk 0:00:11]} 24. Rac1 {[%clk 0:00:47]}  Rc8 {[%clk 0:00:08]} 25. Qb2 {[%clk 0:00:44]}  Rb8 {[%clk 0:00:06]} 26. Nxf6+ {[%clk 0:00:42]}  Rxf6 {[%clk 0:00:06]} 27. Qxe5 {[%clk 0:00:43]}  Rc8 {[%clk 0:00:05]} 28. Qxg5+ {[%clk 0:00:41]}  Kh8 {[%clk 0:00:06]} 29. Rxc5 {[%clk 0:00:39]}  Qxc5 {[%clk 0:00:04]} 30. Qxf6+ {[%clk 0:00:40]}  Kg8 {[%clk 0:00:05]} 31. Qe6+ {[%clk 0:00:39]}  Kg7 {[%clk 0:00:05]} 32. e5 {[%clk 0:00:35]}  Qc3 {[%clk 0:00:04]} 33. Qf6+ {[%clk 0:00:33]}  Kg8 {[%clk 0:00:04]} 34. Rd1 {[%clk 0:00:31]}  Qc7 {[%clk 0:00:04]} 35. Qe6+ {[%clk 0:00:31]}  Kh8 {[%clk 0:00:03]} 36. Rd7 {[%clk 0:00:31]}  Qc2 {[%clk 0:00:03]} 37. Qf6+ {[%clk 0:00:30]}  Kg8 {[%clk 0:00:04]} 38. Qg7# {[%clk 0:00:31]} 1-0


[Site "https://www.chess.com"]

[Event "Titled Tuesday Blitz February 28 Early 2023"]
[White "Karas, Marek"]
[Black "Lorenzo De La Riva, Lazaro"]
[WhiteFideId "14928558"]
[BlackFideId "2268809"]
[WhiteElo "2233"]
[BlackElo "2294"]
[Result "1/2-1/2"]
[Round "02"]
[TimeControl "180+2"]
[Date "2023.02.28"]
[WhiteClock "0:00:01"]
[BlackClock "0:00:02"]

1. e4 {[%clk 0:03:00]}  c5 {[%clk 0:03:00]} 2. Nc3 {[%clk 0:02:59]}  Nc6 {[%clk 0:02:59]} 3. f4 {[%clk 0:02:59]}  d5 {[%clk 0:02:58]} 4. Nxd5 {[%clk 0:02:55]}  f5 {[%clk 0:02:58]} 5. d3 {[%clk 0:02:51]}  Nf6 {[%clk 0:02:57]} 6. Nxf6+ {[%clk 0:02:51]}  exf6 {[%clk 0:02:58]} 7. Nf3 {[%clk 0:02:51]}  Qe7 {[%clk 0:02:58]} 8. Be2 {[%clk 0:02:43]}  fxe4 {[%clk 0:02:50]} 9. dxe4 {[%clk 0:02:43]}  Be6 {[%clk 0:02:42]} 10. c3 {[%clk 0:02:18]}  Rd8 {[%clk 0:02:41]} 11. Qc2 {[%clk 0:02:18]}  g6 {[%clk 0:02:34]} 12. O-O {[%clk 0:02:18]}  Bg7 {[%clk 0:02:33]} 13. Be3 {[%clk 0:02:16]}  O-O {[%clk 0:02:32]} 14. b3 {[%clk 0:02:14]}  b6 {[%clk 0:02:27]} 15. Rad1 {[%clk 0:02:14]}  Bf7 {[%clk 0:02:13]} 16. Rxd8 {[%clk 0:02:13]}  Nxd8 {[%clk 0:02:10]} 17. Rd1 {[%clk 0:02:10]}  Nb7 {[%clk 0:02:00]} 18. Bf2 {[%clk 0:01:51]}  Nd6 {[%clk 0:01:50]} 19. Nd2 {[%clk 0:01:49]}  Re8 {[%clk 0:01:37]} 20. Bf3 {[%clk 0:01:49]}  h5 {[%clk 0:01:23]} 21. c4 {[%clk 0:01:47]}  Bh6 {[%clk 0:01:19]} 22. g3 {[%clk 0:01:46]}  h4 {[%clk 0:01:20]} 23. Re1 {[%clk 0:01:46]}  Qd7 {[%clk 0:01:12]} 24. Nf1 {[%clk 0:01:38]}  hxg3 {[%clk 0:01:08]} 25. hxg3 {[%clk 0:01:38]}  a5 {[%clk 0:00:57]} 26. Kg2 {[%clk 0:01:34]}  a4 {[%clk 0:00:57]} 27. Rd1 {[%clk 0:01:33]}  Qe7 {[%clk 0:00:50]} 28. Re1 {[%clk 0:01:26]}  axb3 {[%clk 0:00:48]} 29. axb3 {[%clk 0:01:27]}  Qc7 {[%clk 0:00:42]} 30. Ne3 {[%clk 0:01:10]}  b5 {[%clk 0:00:31]} 31. Nd5 {[%clk 0:00:58]}  Bxd5 {[%clk 0:00:29]} 32. exd5 {[%clk 0:00:44]}  f5 {[%clk 0:00:28]} 33. Rxe8+ {[%clk 0:00:40]}  Nxe8 {[%clk 0:00:29]} 34. cxb5 {[%clk 0:00:37]}  Bf8 {[%clk 0:00:30]} 35. Be2 {[%clk 0:00:29]}  Nf6 {[%clk 0:00:27]} 36. Bc4 {[%clk 0:00:29]}  Bd6 {[%clk 0:00:21]} 37. Qe2 {[%clk 0:00:29]}  Ne4 {[%clk 0:00:21]} 38. Be1 {[%clk 0:00:26]}  Qe7 {[%clk 0:00:20]} 39. b6 {[%clk 0:00:25]}  Qd8 {[%clk 0:00:13]} 40. Ba5 {[%clk 0:00:25]}  Qb8 {[%clk 0:00:13]} 41. Ba6 {[%clk 0:00:22]}  Bxf4 {[%clk 0:00:10]} 42. gxf4 {[%clk 0:00:20]}  Qxf4 {[%clk 0:00:11]} 43. Qf3 {[%clk 0:00:17]}  Qg5+ {[%clk 0:00:09]} 44. Kf1 {[%clk 0:00:16]}  Ng3+ {[%clk 0:00:09]} 45. Kf2 {[%clk 0:00:11]}  Ne4+ {[%clk 0:00:09]} 46. Ke2 {[%clk 0:00:11]}  Qc1 {[%clk 0:00:07]} 47. Bd3 {[%clk 0:00:05]}  Qb2+ {[%clk 0:00:06]} 48. Kf1 {[%clk 0:00:03]}  Qc1+ {[%clk 0:00:05]} 49. Kg2 {[%clk 0:00:02]}  Qg5+ {[%clk 0:00:05]} 50. Kh2 {[%clk 0:00:02]}  Qh4+ {[%clk 0:00:05]} 51. Kg1 {[%clk 0:00:02]}  Qg5+ {[%clk 0:00:04]} 52. Kh2 {[%clk 0:00:01]}  Qh4+ {[%clk 0:00:03]} 53. Kg2 {[%clk 0:00:02]}  Qg5+ {[%clk 0:00:03]} 54. Kf1 {[%clk 0:00:03]}  Qc1+ {[%clk 0:00:03]} 55. Ke2 {[%clk 0:00:03]}  Qb2+ {[%clk 0:00:03]} 56. Ke3 {[%clk 0:00:03]}  Qd4+ {[%clk 0:00:02]} 57. Ke2 {[%clk 0:00:01]}  Qb2+ {[%clk 0:00:02]} 1/2-1/2


[Site "https://www.chess.com"]

[Event "Titled Tuesday Blitz February 28 Early 2023"]
[White "Skaric, Djuro"]
[Black "Reprintsev, Alexander"]
[WhiteFideId "934569"]
[BlackFideId "14100541"]
[WhiteElo "2282"]
[BlackElo "2250"]
[Result "0-1"]
[Round "02"]
[TimeControl "180+2"]
[Date "2023.02.28"]
[WhiteClock "0:01:10"]
[BlackClock "0:00:22"]

1. g3 {[%clk 0:03:00]}  d5 {[%clk 0:02:57]} 2. Bg2 {[%clk 0:03:01]}  Nc6 {[%clk 0:02:57]} 3. d3 {[%clk 0:03:01]}  e5 {[%clk 0:02:56]} 4. Nf3 {[%clk 0:03:01]}  Be7 {[%clk 0:02:53]} 5. O-O {[%clk 0:03:01]}  Bg4 {[%clk 0:02:52]} 6. h3 {[%clk 0:03:01]}  Bh5 {[%clk 0:02:53]} 7. Nc3 {[%clk 0:03:01]}  Nf6 {[%clk 0:02:51]} 8. e4 {[%clk 0:03:00]}  dxe4 {[%clk 0:02:48]} 9. dxe4 {[%clk 0:03:00]}  Qxd1 {[%clk 0:02:47]} 10. Rxd1 {[%clk 0:02:49]}  Nd4 {[%clk 0:02:46]} 11. Nxd4 {[%clk 0:02:48]}  Bxd1 {[%clk 0:02:30]} 12. Ndb5 {[%clk 0:02:45]}  O-O-O {[%clk 0:02:29]} 13. Be3 {[%clk 0:02:43]}  Bxc2 {[%clk 0:02:24]} 14. Nxa7+ {[%clk 0:02:40]}  Kb8 {[%clk 0:02:24]} 15. Nab5 {[%clk 0:02:40]}  c6 {[%clk 0:02:17]} 16. Na3 {[%clk 0:02:38]}  Bxa3 {[%clk 0:02:16]} 17. bxa3 {[%clk 0:02:37]}  Rd3 {[%clk 0:02:13]} 18. Rc1 {[%clk 0:02:27]}  Rxc3 {[%clk 0:02:10]} 19. Bd2 {[%clk 0:02:27]}  Rxa3 {[%clk 0:01:52]} 20. Rxc2 {[%clk 0:02:27]}  Rd8 {[%clk 0:01:51]} 21. Bc3 {[%clk 0:02:12]}  Rd1+ {[%clk 0:01:40]} 22. Kh2 {[%clk 0:02:11]}  Nd7 {[%clk 0:01:41]} 23. Bb4 {[%clk 0:02:05]}  Ra4 {[%clk 0:01:24]} 24. a3 {[%clk 0:02:02]}  Rd4 {[%clk 0:01:23]} 25. Bc3 {[%clk 0:01:55]}  Rd3 {[%clk 0:01:15]} 26. Bf1 {[%clk 0:01:53]}  Rd1 {[%clk 0:01:15]} 27. Be2 {[%clk 0:01:52]}  Rb1 {[%clk 0:01:11]} 28. Bb4 {[%clk 0:01:51]}  Raxb4 {[%clk 0:01:09]} 29. axb4 {[%clk 0:01:50]}  Rxb4 {[%clk 0:01:10]} 30. Bc4 {[%clk 0:01:45]}  f6 {[%clk 0:01:08]} 31. Be6 {[%clk 0:01:38]}  Kc7 {[%clk 0:01:06]} 32. f3 {[%clk 0:01:36]}  b6 {[%clk 0:00:59]} 33. h4 {[%clk 0:01:35]}  Nc5 {[%clk 0:00:59]} 34. Bg8 {[%clk 0:01:35]}  h6 {[%clk 0:00:58]} 35. g4 {[%clk 0:01:33]}  Rd4 {[%clk 0:00:54]} 36. g5 {[%clk 0:01:33]}  hxg5 {[%clk 0:00:53]} 37. hxg5 {[%clk 0:01:33]}  fxg5 {[%clk 0:00:53]} 38. Kg3 {[%clk 0:01:33]}  Rd3 {[%clk 0:00:53]} 39. Kg4 {[%clk 0:01:33]}  Kd6 {[%clk 0:00:49]} 40. Bc4 {[%clk 0:01:31]}  Ra3 {[%clk 0:00:44]} 41. Be2 {[%clk 0:01:31]}  Nb3 {[%clk 0:00:40]} 42. Rb2 {[%clk 0:01:28]}  Nd4 {[%clk 0:00:39]} 43. Bd1 {[%clk 0:01:25]}  b5 {[%clk 0:00:35]} 44. Rf2 {[%clk 0:01:24]}  Rd3 {[%clk 0:00:34]} 45. Be2 {[%clk 0:01:15]}  Rd2 {[%clk 0:00:31]} 46. Kxg5 {[%clk 0:01:16]}  Rxe2 {[%clk 0:00:30]} 47. Rf1 {[%clk 0:01:15]}  Rg2+ {[%clk 0:00:29]} 48. Kh4 {[%clk 0:01:15]}  b4 {[%clk 0:00:26]} 49. Kh3 {[%clk 0:01:12]}  Rc2 {[%clk 0:00:25]} 50. Rg1 {[%clk 0:01:12]}  Ne6 {[%clk 0:00:24]} 51. Rd1+ {[%clk 0:01:11]}  Kc5 {[%clk 0:00:24]} 52. Kg4 {[%clk 0:01:11]}  b3 {[%clk 0:00:24]} 53. Kf5 {[%clk 0:01:11]}  Nd4+ {[%clk 0:00:24]} 54. Kxe5 {[%clk 0:01:10]}  Nxf3+ {[%clk 0:00:24]} 55. Kf4 {[%clk 0:01:11]}  Nd2 {[%clk 0:00:23]} 56. e5 {[%clk 0:01:10]}  b2 {[%clk 0:00:23]} 57. e6 {[%clk 0:01:10]}  b1=Q {[%clk 0:00:22]} 58. Rxb1 {[%clk 0:01:10]}  Nxb1 {[%clk 0:00:22]} 59. Kf3 {[%clk 0:01:10]}  Kd6 {[%clk 0:00:22]} 0-1


[Site "https://www.chess.com"]

[Event "Titled Tuesday Blitz February 28 Early 2023"]
[White "Mayank Chakraborty"]
[Black "Sovetbekova, Nurai"]
[WhiteFideId "25659766"]
[BlackFideId "13801910"]
[WhiteElo "2103"]
[BlackElo "1857"]
[Result "1-0"]
[Round "02"]
[TimeControl "180+2"]
[Date "2023.02.28"]
[WhiteClock "0:00:09"]
[BlackClock "0:00:05"]

1. e4 {[%clk 0:03:00]}  c5 {[%clk 0:02:59]} 2. Nf3 {[%clk 0:02:58]}  d6 {[%clk 0:02:59]} 3. d4 {[%clk 0:02:58]}  cxd4 {[%clk 0:03:00]} 4. Nxd4 {[%clk 0:02:59]}  Nf6 {[%clk 0:03:01]} 5. Nc3 {[%clk 0:03:00]}  a6 {[%clk 0:03:01]} 6. h3 {[%clk 0:03:00]}  e5 {[%clk 0:03:01]} 7. Nde2 {[%clk 0:02:59]}  h5 {[%clk 0:03:01]} 8. Bg5 {[%clk 0:03:00]}  Be6 {[%clk 0:02:59]} 9. Bxf6 {[%clk 0:02:51]}  Qxf6 {[%clk 0:02:57]} 10. Nd5 {[%clk 0:02:52]}  Bxd5 {[%clk 0:02:53]} 11. Qxd5 {[%clk 0:02:53]}  Nc6 {[%clk 0:02:49]} 12. Nc3 {[%clk 0:02:50]}  Rc8 {[%clk 0:02:17]} 13. Qb3 {[%clk 0:02:06]}  b5 {[%clk 0:01:41]} 14. Nxb5 {[%clk 0:01:58]}  axb5 {[%clk 0:01:38]} 15. Bxb5 {[%clk 0:01:59]}  Qg6 {[%clk 0:01:11]} 16. Qd5 {[%clk 0:01:39]}  Kd7 {[%clk 0:01:06]} 17. O-O-O {[%clk 0:01:36]}  Be7 {[%clk 0:00:58]} 18. Qxe5 {[%clk 0:01:05]}  Qg5+ {[%clk 0:00:38]} 19. f4 {[%clk 0:00:59]}  Qxe5 {[%clk 0:00:35]} 20. fxe5 {[%clk 0:01:00]}  Ke6 {[%clk 0:00:31]} 21. exd6 {[%clk 0:00:46]}  Bxd6 {[%clk 0:00:28]} 22. Rhf1 {[%clk 0:00:37]}  f6 {[%clk 0:00:23]} 23. Kb1 {[%clk 0:00:36]}  Be5 {[%clk 0:00:20]} 24. c3 {[%clk 0:00:30]}  Rc7 {[%clk 0:00:12]} 25. Be2 {[%clk 0:00:28]}  Rb8 {[%clk 0:00:11]} 26. Ka1 {[%clk 0:00:27]}  g6 {[%clk 0:00:10]} 27. Rd5 {[%clk 0:00:23]}  Ne7 {[%clk 0:00:09]} 28. Rd3 {[%clk 0:00:20]}  Rcb7 {[%clk 0:00:07]} 29. Rb1 {[%clk 0:00:19]}  Ra7 {[%clk 0:00:06]} 30. Rd2 {[%clk 0:00:18]}  Nc6 {[%clk 0:00:05]} 31. Bc4+ {[%clk 0:00:17]}  Ke7 {[%clk 0:00:06]} 32. Rbd1 {[%clk 0:00:18]}  Rba8 {[%clk 0:00:05]} 33. Bd5 {[%clk 0:00:16]}  Ra6 {[%clk 0:00:05]} 34. Bc4 {[%clk 0:00:15]}  Ra5 {[%clk 0:00:05]} 35. Rd7+ {[%clk 0:00:14]}  Ke8 {[%clk 0:00:05]} 36. Rh7 {[%clk 0:00:09]} 1-0


[Site "https://www.chess.com"]